bitfinex-derivatives/quotes_BTCF0:USTF0_20241015
["timestamp","ask_amount","ask_price","bid_price","bid_amount"]
[1729005699904,0.076425,65440.0,65437.0,0.06074113]
[1729005700099,0.076425,65440.0,65437.0,0.13716913]
[1729005700302,0.3608,65443.0,65439.0,0.06074113]
[1729005700503,0.3608,65456.0,65435.0,0.3608]
[1729005700504,0.8108,65456.0,65441.0,0.06074113]
[1729005700709,0.3608,65456.0,65454.0,0.076408]
[1729005701015,0.00229309,65459.0,65458.0,0.076404]
[1729005701016,0.00923056,65459.0,65458.0,0.076404]
[1729005701199,0.00229309,65459.0,65458.0,0.076404]
[1729005701401,0.076409,65453.0,65452.0,0.06074113]
[1729005701700,0.45924084,65459.0,65445.0,0.06074113]
[1729005701701,0.00694775,65459.0,65445.0,0.06074113]
[1729005702009,0.3608,65461.0,65450.0,0.06074113]
[1729005702204,0.3608,65461.0,65443.0,0.437221]
[1729005702205,0.076411,65453.0,65452.0,0.06074113]
[1729005702503,0.004,65459.0,65449.0,0.06074113]
[1729005702708,0.076407,65455.0,65452.0,0.076411]
[1729005702908,0.45,65458.0,65452.0,0.06074246]
[1729005703104,0.45,65458.0,65445.0,0.07592824]
[1729005703105,0.45,65458.0,65450.0,0.06074246]
[1729005703404,0.076412,65451.0,65450.0,0.06074246]
[1729005703599,0.3608,65454.0,65449.0,0.06074246]
[1729005703795,0.3608,65454.0,65453.0,0.076409]
[1729005704096,0.3608,65454.0,65449.0,0.06075856]
[1729005704302,0.076416,65447.0,65446.0,0.06075856]
[1729005704502,0.076418,65446.0,65445.0,0.06175856]
[1729005704697,0.534818,65446.0,65443.0,0.06075856]
[1729005704907,0.076435,65431.0,65428.0,0.09114133]
[1729005705099,0.076435,65431.0,65428.0,0.07592824]
[1729005705405,0.076435,65431.0,65421.0,0.09114133]
[1729005705406,0.07644,65427.0,65421.0,0.09114133]
[1729005705710,0.076437,65429.0,65425.0,0.07603387]
[1729005705912,0.00677729,65431.0,65425.0,0.15247587]
[1729005706209,0.07643,65436.0,65431.0,0.076435]
[1729005706408,0.3608,65438.0,65430.0,0.3608]
[1729005706607,0.3608,65438.0,65434.0,0.076431]
[1729005706804,0.076428,65437.0,65429.0,0.07603387]
[1729005707103,0.076428,65437.0,65435.0,0.07643]
[1729005707421,0.36762319,65438.0,65430.0,0.07603387]
[1729005707708,0.8108,65432.0,65423.0,0.07603387]
[1729005707896,0.8108,65432.0,65414.0,0.3608]
[1729005707897,0.076447,65421.0,65420.0,0.07603387]
[1729005708211,0.07645,65418.0,65415.0,0.09114133]
[1729005708505,0.887253,65416.0,65415.0,0.09114133]
[1729005708901,0.076463,65407.0,65406.0,0.031]
[1729005709108,0.887263,65407.0,65406.0,0.031]
[1729005710403,0.887263,65407.0,65390.0,0.076483]
[1729005710404,0.076481,65392.0,65387.0,0.00229397]
[1729005710708,0.45,65391.0,65390.0,0.076483]
[1729005710911,0.076485,65388.0,65387.0,0.00229397]
[1729005712012,0.00784034,65391.0,65390.0,0.080483]
[1729005712506,0.001,65391.0,65390.0,0.080483]
[1729005712699,0.3608,65393.0,65390.0,0.076483]
[1729005712899,0.001,65388.0,65387.0,0.08277997]
[1729005713301,0.001,65388.0,65387.0,0.00629397]
[1729005713503,0.077485,65388.0,65387.0,0.00629397]
[1729005714506,0.076481,65392.0,65387.0,0.36309397]
[1729005714712,0.36778834,65393.0,65387.0,0.43957997]
[1729005715204,0.3608,65393.0,65387.0,0.36509397]
[1729005715409,0.3608,65406.0,65389.0,0.45]
[1729005715711,0.3608,65406.0,65387.0,0.36509397]
[1729005715712,0.3608,65406.0,65396.0,0.3608]
[1729005716205,0.3608,65406.0,65395.0,0.3608]
[1729005716206,0.076467,65404.0,65395.0,0.3608]
[1729005716414,0.076476,65397.0,65394.0,0.076478]
[1729005716606,0.076479,65394.0,65390.0,0.076483]
[1729005716813,0.076474,65398.0,65395.0,0.076477]
[1729005717003,0.076474,65398.0,65394.0,0.3608]
[1729005717310,0.00910156,65405.0,65400.0,0.076471]
[1729005717508,0.00910156,65405.0,65387.0,0.37191727]
[1729005717708,0.076468,65404.0,65393.0,0.076479]
[1729005717902,0.01610156,65405.0,65387.0,0.36991727]
[1729005718207,0.076474,65399.0,65387.0,0.36991727]
[1729005718411,0.07647,65402.0,65391.0,0.45]
[1729005718606,0.46010156,65405.0,65393.0,0.3608]
[1729005719003,0.46010156,65405.0,65395.0,0.076477]
[1729005719204,0.076471,65401.0,65398.0,0.076474]
[1729005719505,0.001,65399.0,65398.0,0.076474]
[1729005719703,0.001,65399.0,65390.0,0.45]
[1729005719910,0.076474,65398.0,65395.0,0.076477]
[1729005720107,0.3608,65396.0,65387.0,0.36709397]
[1729005720305,0.3608,65396.0,65387.0,0.00629397]
[1729005720306,0.076485,65388.0,65387.0,0.00629397]
[1729005721004,0.076485,65388.0,65387.0,0.00229397]
[1729005721200,0.3608,65390.0,65375.0,0.39874672]
[1729005721409,0.076488,65386.0,65382.0,0.076491]
[1729005721611,0.076488,65386.0,65383.0,0.076491]
[1729005721806,0.36777042,65390.0,65375.0,0.84874672]
[1729005722113,0.004,65388.0,65380.0,0.076494]
[1729005722308,0.004,65388.0,65375.0,0.84874672]
[1729005722309,0.076497,65378.0,65376.0,0.076499]
[1729005722513,0.45,65380.0,65375.0,0.3918]
[1729005722718,0.437299,65376.0,65375.0,0.031]
[1729005722916,0.076509,65368.0,65352.0,0.15256378]
[1729005723214,0.076509,65368.0,65342.0,0.5185]
[1729005723215,0.3608,65353.0,65346.0,0.07603678]
[1729005723411,0.3608,65353.0,65343.0,0.00686276]
[1729005723412,0.076535,65346.0,65344.0,0.07603678]
[1729005723615,0.45,65349.0,65342.0,0.3608]
[1729005723812,0.45,65349.0,65334.0,0.3679303]
[1729005723813,0.437335,65346.0,65334.0,0.3679303]
[1729005724020,0.3608,65353.0,65345.0,0.107536]
[1729005724316,0.437335,65346.0,65345.0,0.031]
[1729005724814,0.896415,65346.0,65345.0,0.031]
[1729005725209,0.437335,65346.0,65345.0,0.035]
[1729005725404,0.3608,65346.0,65345.0,0.035]
[1729005725612,0.36763465,65346.0,65345.0,0.111536]
[1729005725913,0.00683465,65346.0,65345.0,0.111536]
[1729005726116,0.076533,65348.0,65345.0,0.110536]
[1729005726317,0.45,65349.0,65345.0,0.034]
[1729005726616,0.3608,65353.0,65345.0,0.110536]
[1729005726617,0.076529,65351.0,65345.0,0.110536]
[1729005726817,0.526531,65349.0,65345.0,0.110536]
[1729005727116,0.437335,65346.0,65345.0,0.034]
[1729005727524,0.896415,65346.0,65345.0,0.034]
[1729005727817,0.437335,65346.0,65345.0,0.034]
[1729005728211,0.3608,65352.0,65345.0,0.034]
[1729005728407,0.076531,65349.0,65347.0,0.076532]
[1729005728622,0.076531,65349.0,65345.0,0.031]
[1729005728623,0.3608,65352.0,65351.0,0.076529]
[1729005728921,0.3608,65352.0,65350.0,0.076529]
[1729005729128,0.3608,65352.0,65345.0,0.034]
[1729005729129,0.3608,65358.0,65357.0,0.076522]
[1729005729309,0.3608,65364.0,65346.0,0.45]
[1729005729515,0.076515,65363.0,65346.0,0.45681661]
[1729005729817,0.3608,65364.0,65363.0,0.076515]
[1729005730009,0.00229598,65369.0,65354.0,0.3608]
[1729005730215,0.45229598,65369.0,65359.0,0.076519]
[1729005730413,0.076515,65363.0,65359.0,0.076519]
[1729005730619,0.076524,65355.0,65354.0,0.3608]
[1729005730822,0.8108,65364.0,65354.0,0.3608]
[1729005731217,0.00229598,65369.0,65354.0,0.3608]
[1729005731218,0.004,65358.0,65357.0,0.076522]
[1729005731823,0.076511,65367.0,65360.0,0.076518]
[1729005732020,0.076511,65367.0,65354.0,0.3608]
[1729005732321,0.006842,65370.0,65360.0,0.3608]
[1729005732512,0.07651,65367.0,65361.0,0.076517]
[1729005732713,0.07651,65367.0,65360.0,0.3608]
[1729005732714,0.07651,65367.0,65363.0,0.076514]
[1729005733021,0.00229555,65384.0,65360.0,0.3608]
[1729005733022,0.00229555,65384.0,65362.0,0.45]
[1729005733208,0.45,65381.0,65362.0,0.45]
[1729005733413,0.076498,65378.0,65362.0,0.45]
[1729005733615,0.45,65381.0,65362.0,0.45]
[1729005733807,0.076503,65374.0,65362.0,0.45]
[1729005734012,0.36767866,65379.0,65368.0,0.8108]
[1729005734215,0.00229555,65384.0,65368.0,0.8108]
[1729005734422,0.07878555,65384.0,65368.0,0.85614507]
[1729005734623,0.00229555,65384.0,65383.0,0.076491]
[1729005735527,0.52878555,65384.0,65378.0,0.437297]
[1729005735817,0.52878555,65384.0,65375.0,0.3608]
[1729005735818,0.00229555,65384.0,65375.0,0.3608]
[1729005736017,0.00229555,65384.0,65383.0,0.076491]
[1729005736224,0.00229555,65384.0,65383.0,0.437291]
[1729005736414,0.00229555,65384.0,65383.0,0.48270506]
[1729005736611,0.00696925,65395.0,65383.0,1.26964]
[1729005736910,0.076475,65397.0,65388.0,0.04541127]
[1729005737115,0.076476,65396.0,65389.0,0.076484]
[1729005737524,0.45,65399.0,65388.0,0.04541127]
[1729005737721,0.076475,65397.0,65392.0,0.07648]
[1729005738813,0.455,65399.0,65388.0,0.04541127]
[1729005739125,0.005,65399.0,65395.0,0.076477]
[1729005739424,0.076471,65400.0,65395.0,0.076477]
[1729005739616,0.07648,65393.0,65392.0,0.001]
[1729005740117,0.07649,65385.0,65380.0,0.04541127]
[1729005740321,0.076491,65383.0,65379.0,0.04541127]
[1729005740516,0.45,65388.0,65382.0,0.076492]
[1729005740517,0.526485,65388.0,65382.0,0.076492]
[1729005740825,0.076485,65388.0,65382.0,0.12190327]
[1729005741019,0.07648,65393.0,65388.0,0.076485]
[1729005741228,0.8108,65399.0,65388.0,0.076485]
[1729005741229,0.012,65399.0,65393.0,0.07648]
[1729005741524,0.012,65399.0,65388.0,0.04541127]
[1729005741525,0.076476,65397.0,65392.0,0.07648]
[1729005742223,0.076476,65397.0,65382.0,0.3618]
[1729005742224,0.076481,65392.0,65387.0,0.04541127]
[1729005742423,0.076481,65392.0,65385.0,0.04541127]
[1729005742624,0.45,65398.0,65385.0,0.12190027]
[1729005742818,0.45,65398.0,65383.0,0.04541127]
[1729005743023,0.36752826,65399.0,65387.0,0.45]
[1729005743326,0.3608,65393.0,65388.0,0.04541127]
[1729005743526,0.3608,65390.0,65385.0,0.04541127]
[1729005743725,0.3608,65390.0,65382.0,0.001]
[1729005743726,0.8108,65386.0,65382.0,0.001]
[1729005744024,0.8108,65386.0,65356.0,0.0908292]
[1729005744025,0.076515,65363.0,65357.0,0.437321]
[1729005744224,0.45,65377.0,65357.0,0.437321]
[1729005744225,0.45,65365.0,65362.0,0.076516]
[1729005744619,0.3608,65367.0,65357.0,0.3608]
[1729005745318,0.3608,65375.0,65365.0,0.3608]
[1729005745513,0.076496,65379.0,65371.0,0.3608]
[1729005745826,0.8108,65383.0,65372.0,0.3608]
[1729005746018,0.076488,65387.0,65380.0,0.076494]
[1729005746325,0.00670621,65389.0,65372.0,0.8108]
[1729005746520,0.45,65394.0,65372.0,0.8108]
[1729005746521,0.076489,65385.0,65379.0,0.076495]
[1729005746824,0.076483,65390.0,65377.0,0.45]
[1729005747024,0.076486,65388.0,65383.0,0.076491]
[1729005747225,0.3608,65391.0,65386.0,0.076488]
[1729005747526,0.076485,65389.0,65382.0,0.076491]
[1729005747720,0.3608,65391.0,65384.0,0.3608]
[1729005747921,0.3608,65391.0,65389.0,0.076484]
[1729005748117,0.3608,65391.0,65390.0,0.076483]
[1729005748319,0.00229502,65399.0,65388.0,0.45]
[1729005748517,0.076479,65394.0,65387.0,0.076486]
[1729005748716,0.076479,65394.0,65384.0,0.3608]
[1729005749219,0.0090458,65399.0,65384.0,0.3608]
[1729005749220,0.00229502,65399.0,65398.0,0.076474]
[1729005749534,0.00229502,65399.0,65390.0,0.3608]
[1729005749722,0.00685065,65402.0,65396.0,0.3608]
[1729005750025,0.076469,65402.0,65390.0,0.3608]
[1729005750224,0.3608,65406.0,65390.0,0.3608]
[1729005750428,0.00678344,65406.0,65397.0,0.076475]
[1729005750615,0.076461,65409.0,65404.0,0.076466]
[1729005750814,0.076461,65409.0,65405.0,0.076465]
[1729005751015,0.325,65418.0,65408.0,0.076462]
[1729005751219,0.076457,65413.0,65408.0,0.076462]
[1729005751430,0.006,65406.0,65402.0,0.3608]
[1729005751633,0.006,65406.0,65405.0,0.076465]
[1729005752923,0.3608,65420.0,65415.0,0.076453]
[1729005753134,0.076457,65413.0,65402.0,0.3608]
[1729005753427,0.076461,65410.0,65402.0,0.3608]
[1729005753634,0.076457,65413.0,65407.0,0.076462]
[1729005753830,0.008,65412.0,65402.0,0.3608]
[1729005754129,0.008,65412.0,65409.0,0.076461]
[1729005754331,0.008,65412.0,65402.0,0.3608]
[1729005754533,0.008,65412.0,65411.0,0.071458]
[1729005754828,0.45,65420.0,65403.0,0.3608]
[1729005755028,0.076453,65416.0,65411.0,0.076458]
[1729005755225,0.45,65420.0,65403.0,0.3608]
[1729005755427,0.45,65414.0,65403.0,0.3608]
[1729005755622,0.076459,65411.0,65403.0,0.3608]
[1729005755823,0.001,65412.0,65403.0,0.3608]
[1729005756224,0.077458,65412.0,65403.0,0.3608]
[1729005756425,0.001,65412.0,65403.0,0.437267]
[1729005756625,0.001,65412.0,65411.0,0.3608]
[1729005756829,0.001,65412.0,65411.0,0.437258]
[1729005757334,0.001,65420.0,65419.0,0.076449]
[1729005757520,0.001,65420.0,65404.0,0.45]
[1729005757727,0.077448,65420.0,65410.0,0.3608]
[1729005757938,0.077448,65420.0,65416.0,0.076453]
[1729005758124,0.076457,65412.0,65406.0,0.3608]
[1729005758326,0.45,65417.0,65406.0,0.3608]
[1729005758634,0.3608,65416.0,65411.0,0.076458]
[1729005759023,0.3608,65416.0,65415.0,0.076454]
[1729005759334,0.00229415,65421.0,65415.0,0.437254]
[1729005759635,0.00229415,65421.0,65416.0,0.076452]
[1729005759636,0.076448,65420.0,65416.0,0.076452]
[1729005760639,0.001,65417.0,65416.0,0.076452]
[1729005761431,0.076448,65420.0,65416.0,0.076452]
[1729005761645,0.076449,65419.0,65416.0,0.076452]
[1729005761840,0.07646,65410.0,65406.0,0.437264]
[1729005762030,0.076467,65404.0,65403.0,0.002]
[1729005762343,0.45,65404.0,65385.0,0.07603678]
[1729005762632,0.45,65401.0,65391.0,0.3608]
[1729005762828,0.3608,65406.0,65402.0,0.076469]
[1729005762829,0.437265,65406.0,65402.0,0.076469]
[1729005763032,0.3608,65406.0,65397.0,0.3608]
[1729005763229,0.437264,65406.0,65403.0,0.076467]
[1729005763430,0.437264,65406.0,65405.0,0.076465]
[1729005763431,0.3608,65406.0,65405.0,0.076465]
[1729005763732,0.076454,65416.0,65412.0,0.076457]
[1729005763932,0.3608,65419.0,65412.0,0.076456]
[1729005763933,0.076452,65417.0,65412.0,0.076456]
[1729005764136,0.3608,65419.0,65410.0,0.3608]
[1729005764137,0.36757646,65419.0,65410.0,0.3608]
[1729005764336,0.45,65418.0,65410.0,0.3608]
[1729005764531,0.3608,65419.0,65415.0,0.076454]
[1729005764729,0.00229415,65421.0,65418.0,0.07645]
[1729005764931,0.00229415,65421.0,65405.0,0.08003678]
[1729005764932,0.00901989,65421.0,65416.0,0.3608]
[1729005765135,0.07874115,65421.0,65418.0,0.07645]
[1729005765439,0.076448,65420.0,65418.0,0.07645]
[1729005765836,0.076451,65417.0,65416.0,0.3608]
[1729005766342,0.076448,65420.0,65416.0,0.3608]
[1729005767043,0.00229415,65421.0,65418.0,0.07645]
[1729005767233,0.00229415,65421.0,65420.0,0.076448]
[1729005767234,0.00929415,65421.0,65420.0,0.076448]
[1729005767739,0.00929415,65421.0,65420.0,0.437248]
[1729005768042,0.076438,65429.0,65425.0,0.076441]
[1729005768339,0.076438,65429.0,65420.0,1.26936]
[1729005768340,0.3608,65433.0,65422.0,0.0607178]
[1729005768538,0.45676016,65440.0,65420.0,0.8128]
[1729005768539,0.45676016,65440.0,65427.0,0.3608]
[1729005768728,0.3608,65437.0,65427.0,0.3608]
[1729005768933,0.076433,65433.0,65427.0,0.3608]
[1729005769435,0.45676016,65440.0,65437.0,0.076428]
[1729005769436,0.00676016,65440.0,65437.0,0.076428]
[1729005769633,0.00676016,65440.0,65428.0,0.45852]
[1729005769634,0.00229338,65447.0,65435.0,0.3608]
[1729005769841,0.076425,65440.0,65437.0,0.076427]
[1729005770143,0.076425,65440.0,65435.0,0.3608]
[1729005770342,0.076425,65440.0,65439.0,0.076426]
[1729005770543,0.00908439,65447.0,65436.0,0.3608]
[1729005770844,0.3608,65459.0,65443.0,0.8108]
[1729005771043,0.076414,65450.0,65443.0,0.8108]
[1729005771341,0.3608,65459.0,65443.0,0.8108]
[1729005771529,0.076408,65454.0,65453.0,0.076409]
[1729005771732,0.3608,65459.0,65450.0,0.3608]
[1729005771934,0.437203,65459.0,65450.0,0.3608]
[1729005772131,0.437203,65459.0,65457.0,0.076404]
[1729005772336,0.3608,65459.0,65458.0,0.076404]
[1729005772636,0.00229245,65468.0,65457.0,0.3608]
[1729005772637,0.076397,65464.0,65457.0,0.3608]
[1729005772837,0.076393,65467.0,65464.0,0.076396]
[1729005773040,0.076393,65467.0,65460.0,0.45]
[1729005773241,0.00229245,65468.0,65467.0,0.076393]
[1729005774043,0.00229245,65468.0,65467.0,0.534633]
[1729005774238,0.076378,65480.0,65467.0,0.45824]
[1729005774434,0.076378,65480.0,65477.0,0.07638]
[1729005774641,0.00229157,65494.0,65478.0,0.07638]
[1729005774829,0.00701166,65485.0,65484.0,0.076373]
[1729005775036,0.00229157,65494.0,65492.0,0.076363]
[1729005775344,0.00229157,65494.0,65493.0,0.526363]
[1729005775544,0.076343,65511.0,65495.0,0.07636]
[1729005775746,0.076343,65511.0,65493.0,0.526363]
[1729005775747,0.00684176,65511.0,65502.0,0.45]
[1729005776049,0.076349,65505.0,65502.0,0.45]
[1729005776247,0.3608,65520.0,65502.0,0.45]
[1729005776440,0.3608,65520.0,65490.0,0.5176]
[1729005776441,0.3608,65513.0,65492.0,0.526364]
[1729005776636,0.45,65509.0,65492.0,0.45]
[1729005776840,0.3608,65501.0,65485.0,0.36753146]
[1729005777041,0.076371,65486.0,65485.0,0.3608]
[1729005777547,0.076377,65481.0,65479.0,0.3608]
[1729005777843,0.3608,65508.0,65480.0,0.526378]
[1729005778143,0.3608,65508.0,65494.0,0.076361]
[1729005778144,0.076355,65500.0,65494.0,0.076361]
[1729005778336,0.3608,65502.0,65488.0,0.3608]
[1729005778538,0.3608,65502.0,65483.0,0.076373]
[1729005778539,0.076367,65490.0,65483.0,0.076373]
[1729005778748,0.45,65495.0,65479.0,0.3608]
[1729005778749,0.076367,65489.0,65479.0,0.3608]
[1729005778948,0.076369,65488.0,65484.0,0.076373]
[1729005779139,0.3608,65494.0,65479.0,0.3608]
[1729005779140,0.076364,65493.0,65479.0,0.3608]
[1729005779346,0.45,65500.0,65479.0,0.3608]
[1729005779347,0.076358,65498.0,65489.0,0.3608]
[1729005779543,0.3608,65500.0,65493.0,0.45]
[1729005779747,0.076328,65523.0,65517.0,0.076334]
[1729005779951,0.3608,65527.0,65517.0,0.45]
[1729005780150,0.3608,65527.0,65511.0,0.45]
[1729005780446,0.076336,65516.0,65511.0,0.526341]
[1729005780846,0.076331,65521.0,65511.0,0.45]
[1729005781048,0.076331,65521.0,65520.0,0.45]
[1729005781545,0.3608,65521.0,65515.0,0.45]
[1729005781752,0.3608,65521.0,65503.0,0.00678983]
[1729005781753,0.076343,65510.0,65509.0,0.45]
[1729005782053,0.076326,65525.0,65498.0,0.8108]
[1729005782054,0.3608,65511.0,65498.0,0.8108]
[1729005782248,0.076354,65501.0,65498.0,0.8108]
[1729005782547,0.3608,65503.0,65498.0,0.3608]
[1729005782750,0.1656,65510.0,65498.0,0.3608]
[1729005783052,0.076356,65499.0,65498.0,0.3608]
[1729005783254,0.1656,65510.0,65498.0,0.3608]
[1729005783553,0.3608,65501.0,65496.0,0.45]
[1729005783847,0.3608,65511.0,65497.0,0.3608]
[1729005784048,0.36309098,65515.0,65508.0,0.45]
[1729005784049,0.00679804,65514.0,65508.0,0.45]
[1729005784357,0.3608,65523.0,65520.0,0.076331]
[1729005784358,0.00680165,65523.0,65520.0,0.076331]
[1729005784553,0.3608,65541.0,65534.0,0.076315]
[1729005784554,0.00675579,65536.0,65534.0,0.076315]
[1729005784848,0.3608,65541.0,65532.0,0.3608]
[1729005785150,0.076328,65523.0,65520.0,0.076331]
[1729005785345,0.45,65529.0,65513.0,0.3608]
[1729005785548,0.076317,65532.0,65517.0,0.076334]
[1729005785749,0.076324,65527.0,65522.0,0.076329]
[1729005785944,0.3608,65534.0,65520.0,0.3608]
[1729005786452,0.011,65523.0,65521.0,0.076329]
[1729005786655,0.087328,65523.0,65521.0,0.076329]
[1729005786954,0.076329,65522.0,65521.0,0.076329]
[1729005787254,0.3688,65534.0,65525.0,0.076325]
[1729005787445,0.076324,65527.0,65525.0,0.076325]
[1729005787646,0.076324,65527.0,65520.0,0.3618]
[1729005787949,0.076323,65528.0,65524.0,0.076326]
[1729005788152,0.076323,65528.0,65521.0,0.001]
[1729005788343,0.3608,65534.0,65521.0,0.001]
[1729005788344,0.076323,65527.0,65521.0,0.001]
[1729005788546,0.36769133,65534.0,65522.0,0.076329]
[1729005788749,0.076329,65522.0,65521.0,0.001]
[1729005788951,0.437129,65522.0,65521.0,0.001]
[1729005789551,0.00689133,65534.0,65520.0,0.451]
[1729005789747,0.3608,65535.0,65520.0,0.451]
[1729005789942,0.076327,65524.0,65521.0,0.07633]
[1729005790149,0.3608,65535.0,65520.0,0.451]
[1729005790357,0.076324,65527.0,65524.0,0.076327]
[1729005790654,0.076329,65522.0,65521.0,0.001]
[1729005791255,0.076335,65517.0,65513.0,0.3608]
[1729005791449,0.076332,65520.0,65517.0,0.076334]
[1729005791641,0.009,65524.0,65515.0,0.45]
[1729005791852,0.009,65524.0,65520.0,0.45]
[1729005792051,0.009,65524.0,65523.0,0.076328]
[1729005792359,0.009,65524.0,65513.0,0.3608]
[1729005792360,0.076333,65519.0,65516.0,0.076336]
[1729005792547,0.3608,65523.0,65516.0,0.076336]
[1729005792743,0.076343,65510.0,65507.0,0.08314149]
[1729005792956,0.3608,65510.0,65500.0,0.3608]
[1729005793256,0.076357,65498.0,65497.0,0.076358]
[1729005793551,0.3608,65504.0,65492.0,0.076363]
[1729005793755,0.076365,65491.0,65488.0,0.08306778]
[1729005794056,0.3608,65504.0,65491.0,0.076364]
[1729005794261,0.076362,65494.0,65492.0,0.076363]
[1729005794447,0.076363,65493.0,65492.0,0.076363]
[1729005795056,0.36766372,65504.0,65485.0,0.3608]
[1729005795352,0.076369,65488.0,65485.0,0.3608]
[1729005795656,0.076364,65493.0,65488.0,0.076368]
[1729005795948,0.3608,65498.0,65485.0,0.3608]
[1729005796154,0.076371,65486.0,65485.0,0.3608]
[1729005796343,0.36766372,65504.0,65485.0,0.3608]
[1729005796543,0.3608,65504.0,65503.0,0.076351]
[1729005796744,0.3608,65504.0,65491.0,0.3608]
[1729005796943,0.8108,65504.0,65491.0,0.437165]
[1729005797155,0.076359,65497.0,65492.0,0.076363]
[1729005797354,0.8108,65504.0,65491.0,0.3608]
[1729005797547,0.076364,65492.0,65491.0,0.3608]
[1729005797747,0.3608,65497.0,65487.0,0.45]
[1729005797953,0.3608,65497.0,65492.0,0.45]
[1729005798154,0.437158,65497.0,65492.0,0.526363]
[1729005798348,0.437158,65497.0,65494.0,0.076361]
[1729005798551,0.3618,65504.0,65492.0,0.45]
[1729005798552,0.43815,65504.0,65500.0,0.076354]
[1729005798752,0.43815,65504.0,65486.0,0.437171]
[1729005798753,0.07735,65504.0,65503.0,0.45]
[1729005798950,0.07635,65504.0,65503.0,0.45]
[1729005799351,0.00698675,65505.0,65498.0,0.45]
[1729005799352,0.076356,65499.0,65498.0,0.45]
[1729005800755,0.080356,65499.0,65498.0,0.45]
[1729005801663,0.004,65499.0,65498.0,0.526357]
[1729005801851,0.087314,65499.0,65498.0,0.45]
[1729005802057,0.076359,65496.0,65495.0,0.3608]
[1729005802359,0.004,65499.0,65495.0,0.3608]
[1729005802557,0.004,65499.0,65498.0,0.526357]
[1729005803058,0.076341,65512.0,65498.0,0.526357]
[1729005803258,0.076341,65512.0,65495.0,0.72840447]
[1729005803259,0.076341,65512.0,65511.0,0.45]
[1729005803656,0.076346,65507.0,65506.0,0.45]
[1729005804558,0.3608,65512.0,65506.0,0.45]
[1729005804976,0.3608,65512.0,65509.0,0.076344]
[1729005805260,0.3608,65512.0,65506.0,0.45]
[1729005805261,0.437141,65512.0,65510.0,0.076343]
[1729005805665,0.076341,65512.0,65510.0,0.076343]
[1729005805865,0.076337,65515.0,65514.0,0.076338]
[1729005806073,0.00229028,65531.0,65515.0,0.076336]
[1729005806256,0.3608,65543.0,65530.0,0.52632]
[1729005806564,0.3608,65550.0,65542.0,0.45]
[1729005806870,0.3608,65550.0,65542.0,0.526305]
[1729005806871,0.076301,65546.0,65542.0,0.526305]
[1729005807166,0.076301,65546.0,65542.0,0.45]
[1729005807363,0.3608,65550.0,65542.0,0.45]
[1729005807560,0.0763,65547.0,65542.0,0.45]
[1729005807862,0.07631,65539.0,65531.0,0.45]
[1729005808067,0.001,65543.0,65537.0,0.3608]
[1729005808455,0.001,65543.0,65540.0,0.076307]
[1729005808655,0.001,65543.0,65542.0,0.076306]
[1729005808861,0.001,65543.0,65537.0,0.076311]
[1729005809465,0.001,65543.0,65539.0,0.076308]
[1729005809660,0.076303,65544.0,65542.0,0.001]
[1729005809866,0.076304,65543.0,65542.0,0.001]
[1729005810069,0.076304,65543.0,65524.0,0.42099719]
[1729005810070,0.45,65543.0,65524.0,0.42099719]
[1729005810262,0.3608,65544.0,65524.0,0.3608]
[1729005810263,0.076323,65528.0,65524.0,0.3608]
[1729005810460,0.076321,65529.0,65524.0,0.3608]
[1729005810769,0.3608,65534.0,65524.0,0.3608]
[1729005810968,0.076333,65519.0,65517.0,0.3608]
[1729005811171,0.45,65518.0,65516.0,0.00228926]
[1729005811363,0.45,65518.0,65506.0,0.07524649]
[1729005811364,0.076335,65517.0,65505.0,0.06019719]
[1729005811563,0.076349,65505.0,65502.0,0.06019719]
[1729005811757,0.45,65506.0,65500.0,0.3608]
[1729005811968,0.3608,65508.0,65494.0,0.3608]
[1729005811969,0.45,65501.0,65494.0,0.3608]
[1729005812162,0.52636,65495.0,65494.0,0.3608]
[1729005812563,0.52636,65495.0,65485.0,0.3608]
[1729005812564,0.8108,65495.0,65485.0,0.3608]
[1729005812771,0.526367,65489.0,65485.0,0.3608]
[1729005812970,0.45,65494.0,65485.0,0.3608]
[1729005813172,0.076364,65492.0,65487.0,0.07637]
[1729005813373,0.076364,65492.0,65488.0,0.07865839]
[1729005813666,0.3608,65495.0,65488.0,0.00229039]
[1729005813874,0.45,65493.0,65488.0,0.00229039]
[1729005814059,0.076367,65489.0,65488.0,0.00229039]
[1729005814467,0.437167,65489.0,65488.0,0.00229039]
[1729005815364,0.076367,65489.0,65488.0,0.00229039]
[1729005816074,0.076367,65489.0,65488.0,0.007]
[1729005816264,0.437167,65489.0,65488.0,0.007]
[1729005816869,0.440167,65489.0,65478.0,0.00015686]
[1729005817071,0.076378,65480.0,65478.0,0.00015686]
[1729005817271,0.076379,65479.0,65475.0,0.3608]
[1729005817472,0.45,65483.0,65475.0,0.3608]
[1729005817770,0.076383,65476.0,65475.0,0.3608]
[1729005818670,0.076379,65480.0,65475.0,0.3608]
[1729005818870,0.076379,65479.0,65474.0,0.076385]
[1729005819371,0.00605944,65482.0,65472.0,0.3608]
[1729005819581,0.001,65483.0,65478.0,0.06019719]
[1729005820074,0.076379,65480.0,65478.0,0.06019719]
[1729005820373,0.8108,65479.0,65475.0,0.06019719]
[1729005820568,0.8108,65479.0,65457.0,0.45109579]
[1729005820569,0.076386,65473.0,65472.0,0.005]